[Event "Live Chess"]
[Site "Chess.com"]
[Date "2024.06.01"]
[Round "-"]
[White "Yarigo"]
[Black "YukHei_Lee2011"]
[Result "1-0"]
[WhiteElo "2448"]
[BlackElo "2015"]
[TimeControl "300"]
[EndTime "9:20:04 PDT"]
[Termination "Yarigo won by checkmate"]

1. d4 {[%clk 0:04:54.1]} 1... c6 {[%clk 0:04:59]} 2. Nf3 {[%clk 0:04:52]} 2...
d5 {[%clk 0:04:58.9]} 3. Bf4 {[%clk 0:04:47.4]} 3... Nf6 {[%clk 0:04:58]} 4. e3
{[%clk 0:04:45.9]} 4... Bf5 {[%clk 0:04:56.7]} 5. Bd3 {[%clk 0:04:43.3]} 5...
Bg6 {[%clk 0:04:54.9]} 6. Qe2 {[%clk 0:04:26.7]} 6... Qb6 {[%clk 0:04:45.1]} 7.
b3 {[%clk 0:04:21.5]} 7... e6 {[%clk 0:04:42.3]} 8. O-O {[%clk 0:04:17.4]} 8...
Be7 {[%clk 0:04:39.2]} 9. Ne5 {[%clk 0:04:06.5]} 9... O-O {[%clk 0:04:34.2]} 10.
Bxg6 {[%clk 0:04:02.7]} 10... hxg6 {[%clk 0:04:34.1]} 11. c4 {[%clk 0:04:01.3]}
11... Nbd7 {[%clk 0:04:25.2]} 12. Nxd7 {[%clk 0:03:54.6]} 12... Nxd7 {[%clk
0:04:25.1]} 13. Nd2 {[%clk 0:03:52.2]} 13... c5 {[%clk 0:04:14.1]} 14. dxc5
{[%clk 0:03:43.4]} 14... Bxc5 {[%clk 0:04:14]} 15. cxd5 {[%clk 0:03:41.4]} 15...
exd5 {[%clk 0:04:13.9]} 16. Nf3 {[%clk 0:03:37.1]} 16... Rfe8 {[%clk 0:04:06.3]}
17. Qd3 {[%clk 0:03:23.8]} 17... Nf6 {[%clk 0:03:59.7]} 18. Be5 {[%clk
0:03:14.2]} 18... Rad8 {[%clk 0:03:50.3]} 19. Rad1 {[%clk 0:03:07.3]} 19... Qc6
{[%clk 0:03:38.7]} 20. Rc1 {[%clk 0:02:59.9]} 20... Qb6 {[%clk 0:03:32.6]} 21.
Rc2 {[%clk 0:02:52.3]} 21... Ne4 {[%clk 0:03:24.3]} 22. Bd4 {[%clk 0:02:44.1]}
22... Bxd4 {[%clk 0:03:09.3]} 23. Nxd4 {[%clk 0:02:41.7]} 23... Rc8 {[%clk
0:03:06.6]} 24. Rfc1 {[%clk 0:02:37.8]} 24... Rxc2 {[%clk 0:02:59.9]} 25. Qxc2
{[%clk 0:02:33.4]} 25... Qf6 {[%clk 0:02:58]} 26. h3 {[%clk 0:02:18]} 26... Qa6
{[%clk 0:02:48.8]} 27. Qe2 {[%clk 0:02:06.1]} 27... Qb6 {[%clk 0:02:38.9]} 28.
Qb5 {[%clk 0:01:53.7]} 28... Qxb5 {[%clk 0:02:26.5]} 29. Nxb5 {[%clk 0:01:52]}
29... Re6 {[%clk 0:02:13.8]} 30. Rc8+ {[%clk 0:01:42.3]} 30... Kh7 {[%clk
0:02:12.4]} 31. Rc7 {[%clk 0:01:41]} 31... Ra6 {[%clk 0:02:05.3]} 32. a4 {[%clk
0:01:28.5]} 32... Rc6 {[%clk 0:01:52.6]} 33. Rxc6 {[%clk 0:01:23.1]} 33... bxc6
{[%clk 0:01:52.5]} 34. Nxa7 {[%clk 0:01:20.8]} 34... c5 {[%clk 0:01:50.4]} 35.
Nb5 {[%clk 0:01:16.4]} 35... c4 {[%clk 0:01:47]} 36. bxc4 {[%clk 0:01:13.4]}
36... dxc4 {[%clk 0:01:46.9]} 37. a5 {[%clk 0:01:07.6]} 37... c3 {[%clk
0:01:41]} 38. Nd4 {[%clk 0:01:05.9]} 38... Nc5 {[%clk 0:01:39]} 39. Kf1 {[%clk
0:01:02.5]} 39... Kg8 {[%clk 0:01:36.5]} 40. Ke2 {[%clk 0:01:00.8]} 40... Kf8
{[%clk 0:01:36]} 41. Nb5 {[%clk 0:00:59.6]} 41... Ke7 {[%clk 0:01:33.1]} 42.
Nxc3 {[%clk 0:00:56.7]} 42... Na6 {[%clk 0:01:29.6]} 43. Kd3 {[%clk 0:00:47.3]}
43... Nc5+ {[%clk 0:01:26.6]} 44. Kc4 {[%clk 0:00:45.7]} 44... Na6 {[%clk
0:01:26.5]} 45. Kb5 {[%clk 0:00:41.3]} 45... Nc7+ {[%clk 0:01:26]} 46. Kc6
{[%clk 0:00:40.1]} 46... Na6 {[%clk 0:01:24.3]} 47. Kb6 {[%clk 0:00:38.6]} 47...
Nb8 {[%clk 0:01:20.4]} 48. Kb7 {[%clk 0:00:33.9]} 48... Nd7 {[%clk 0:01:19.8]}
49. Ne4 {[%clk 0:00:29.1]} 49... Ke6 {[%clk 0:01:14.3]} 50. a6 {[%clk
0:00:27.5]} 50... f5 {[%clk 0:01:11.8]} 51. Ng5+ {[%clk 0:00:23.4]} 51... Kf6
{[%clk 0:01:10.8]} 52. a7 {[%clk 0:00:22.2]} 52... Nc5+ {[%clk 0:01:08.3]} 53.
Kc6 {[%clk 0:00:19.7]} 53... Nd3 {[%clk 0:01:04.4]} 54. f4 {[%clk 0:00:17.6]}
54... Nb4+ {[%clk 0:01:02.3]} 55. Kd6 {[%clk 0:00:15.9]} 55... Nc2 {[%clk
0:00:38.2]} 56. a8=Q {[%clk 0:00:14.3]} 56... Nxe3 {[%clk 0:00:32]} 57. Qf8#
{[%clk 0:00:13.8]} 1-0

[Event "Live Chess"]
[Site "Chess.com"]
[Date "2024.06.01"]
[Round "-"]
[White "KyryloPoluliakh"]
[Black "TJ-W"]
[Result "1-0"]
[WhiteElo "1464"]
[BlackElo "1563"]
[TimeControl "300"]
[EndTime "9:20:20 PDT"]
[Termination "KyryloPoluliakh won by checkmate"]

1. c4 {[%clk 0:04:55.9]} 1... e5 {[%clk 0:04:58.2]} 2. Nc3 {[%clk 0:04:44]} 2...
Nf6 {[%clk 0:04:56.7]} 3. g3 {[%clk 0:04:41.4]} 3... Bb4 {[%clk 0:04:51.4]} 4.
Nd5 {[%clk 0:04:35.7]} 4... Nxd5 {[%clk 0:04:45.7]} 5. cxd5 {[%clk 0:04:33.7]}
5... c6 {[%clk 0:04:43.6]} 6. Bg2 {[%clk 0:04:32.5]} 6... O-O {[%clk 0:04:41.3]}
7. e3 {[%clk 0:04:27.7]} 7... d6 {[%clk 0:04:33.5]} 8. Ne2 {[%clk 0:04:22.2]}
8... cxd5 {[%clk 0:04:29.7]} 9. Bxd5 {[%clk 0:04:19.4]} 9... Nc6 {[%clk
0:04:18.9]} 10. O-O {[%clk 0:04:14.8]} 10... Bh3 {[%clk 0:04:11.7]} 11. Re1
{[%clk 0:04:10.7]} 11... Ne7 {[%clk 0:03:51.3]} 12. Bxb7 {[%clk 0:03:58.2]}
12... Rb8 {[%clk 0:03:50.1]} 13. Bf3 {[%clk 0:03:55.3]} 13... Ng6 {[%clk
0:03:42.1]} 14. a3 {[%clk 0:03:51.3]} 14... Ba5 {[%clk 0:03:31.2]} 15. b4 {[%clk
0:03:48]} 15... Bb6 {[%clk 0:03:25.6]} 16. d4 {[%clk 0:03:45.9]} 16... exd4
{[%clk 0:03:19.2]} 17. Nxd4 {[%clk 0:03:43.1]} 17... Qf6 {[%clk 0:03:03.7]} 18.
Bb2 {[%clk 0:03:37.8]} 18... Ne5 {[%clk 0:02:56.9]} 19. Bd5 {[%clk 0:03:28.7]}
19... a5 {[%clk 0:02:36.6]} 20. Nc6 {[%clk 0:03:19.6]} 20... Rbc8 {[%clk
0:02:15.9]} 21. Nxe5 {[%clk 0:03:14]} 21... dxe5 {[%clk 0:02:12.3]} 22. f4
{[%clk 0:03:05.5]} 22... axb4 {[%clk 0:01:56.1]} 23. Bxe5 {[%clk 0:02:58.7]}
23... Qg6 {[%clk 0:01:50.7]} 24. axb4 {[%clk 0:02:55.1]} 24... Rc2 {[%clk
0:01:43.1]} 25. Re2 {[%clk 0:02:51.2]} 25... Bg4 {[%clk 0:01:37.4]} 26. Qxc2
{[%clk 0:02:47.9]} 26... Bxe2 {[%clk 0:01:30.7]} 27. Qxe2 {[%clk 0:02:46.5]}
27... Rd8 {[%clk 0:01:25.8]} 28. Bf3 {[%clk 0:02:41.7]} 28... Qe6 {[%clk
0:01:17.9]} 29. Be4 {[%clk 0:02:32.5]} 29... f6 {[%clk 0:01:14.8]} 30. Bb1
{[%clk 0:02:23.9]} 30... fxe5 {[%clk 0:01:11.4]} 31. Ba2 {[%clk 0:02:21]} 31...
Rd5 {[%clk 0:01:09.8]} 32. Qg2 {[%clk 0:02:11.7]} 32... Bxe3+ {[%clk 0:00:57.3]}
33. Kh1 {[%clk 0:02:08.8]} 33... e4 {[%clk 0:00:54.3]} 34. Bxd5 {[%clk
0:02:04.8]} 34... Qxd5 {[%clk 0:00:52.6]} 35. Qa2 {[%clk 0:02:02.4]} 35... Qxa2
{[%clk 0:00:48.3]} 36. Rxa2 {[%clk 0:02:01]} 36... Bd4 {[%clk 0:00:44]} 37. Re2
{[%clk 0:01:59.4]} 37... e3 {[%clk 0:00:42.1]} 38. Kg2 {[%clk 0:01:58.8]} 38...
Kf7 {[%clk 0:00:40]} 39. Kf3 {[%clk 0:01:58]} 39... Ke6 {[%clk 0:00:39.3]} 40.
Ke4 {[%clk 0:01:56.4]} 40... Bc3 {[%clk 0:00:30.4]} 41. Rxe3 {[%clk 0:01:49.4]}
41... Bxb4 {[%clk 0:00:29.4]} 42. g4 {[%clk 0:01:45.5]} 42... Bd2 {[%clk
0:00:22.4]} 43. Re2 {[%clk 0:01:41.8]} 43... Bc1 {[%clk 0:00:20.9]} 44. f5+
{[%clk 0:01:38.6]} 44... Kf6 {[%clk 0:00:20]} 45. h4 {[%clk 0:01:35.5]} 45... g5
{[%clk 0:00:17.5]} 46. hxg5+ {[%clk 0:01:29.7]} 46... Bxg5 {[%clk 0:00:17.4]}
47. Kf3 {[%clk 0:01:27.4]} 47... Bc1 {[%clk 0:00:15.2]} 48. Re6+ {[%clk
0:01:25.8]} 48... Kg5 {[%clk 0:00:13.6]} 49. f6 {[%clk 0:01:21.1]} 49... Bb2
{[%clk 0:00:10.4]} 50. f7 {[%clk 0:01:18.2]} 50... Bg7 {[%clk 0:00:09.3]} 51.
Re8 {[%clk 0:01:14.6]} 51... Kf6 {[%clk 0:00:04.3]} 52. f8=Q+ {[%clk 0:01:13.1]}
52... Bxf8 {[%clk 0:00:03.5]} 53. Rxf8+ {[%clk 0:01:12.6]} 53... Kg7 {[%clk
0:00:03]} 54. Rf5 {[%clk 0:01:11.8]} 54... Kg6 {[%clk 0:00:02.9]} 55. Kf4 {[%clk
0:01:09.1]} 55... h5 {[%clk 0:00:02.8]} 56. gxh5+ {[%clk 0:01:07]} 56... Kh6
{[%clk 0:00:02.7]} 57. Rg5 {[%clk 0:01:04.9]} 57... Kh7 {[%clk 0:00:02.6]} 58.
Rg6 {[%clk 0:01:03.8]} 58... Kh8 {[%clk 0:00:02.5]} 59. Kf5 {[%clk 0:01:02]}
59... Kh7 {[%clk 0:00:02.4]} 60. Kf6 {[%clk 0:01:01.1]} 60... Kh8 {[%clk
0:00:02.3]} 61. Kf7 {[%clk 0:01:00.1]} 61... Kh7 {[%clk 0:00:01.6]} 62. Rf6
{[%clk 0:00:56]} 62... Kh8 {[%clk 0:00:00.1]} 63. Rh6# {[%clk 0:00:54.8]} 1-0

[Event "Live Chess"]
[Site "Chess.com"]
[Date "2024.06.01"]
[Round "-"]
[White "dl_chess"]
[Black "Brooms1989"]
[Result "0-1"]
[WhiteElo "1160"]
[BlackElo "1032"]
[TimeControl "300"]
[EndTime "9:20:21 PDT"]
[Termination "Brooms1989 won by checkmate"]

1. e4 {[%clk 0:04:56.3]} 1... e5 {[%clk 0:04:52.3]} 2. Bc4 {[%clk 0:04:53.7]}
2... Nf6 {[%clk 0:04:50.8]} 3. Nc3 {[%clk 0:04:50.8]} 3... Nxe4 {[%clk 0:04:49]}
4. Nxe4 {[%clk 0:04:48.1]} 4... d5 {[%clk 0:04:48.6]} 5. Bd3 {[%clk 0:04:47.2]}
5... dxe4 {[%clk 0:04:47.3]} 6. Bxe4 {[%clk 0:04:46.5]} 6... c6 {[%clk
0:04:44.1]} 7. Nf3 {[%clk 0:04:33.3]} 7... Bd6 {[%clk 0:04:33.5]} 8. h3 {[%clk
0:04:14.6]} 8... O-O {[%clk 0:04:29.9]} 9. d4 {[%clk 0:04:12.5]} 9... f5 {[%clk
0:04:05.3]} 10. dxe5 {[%clk 0:04:01.5]} 10... fxe4 {[%clk 0:04:02]} 11. exd6
{[%clk 0:03:32.2]} 11... exf3 {[%clk 0:03:59.2]} 12. O-O {[%clk 0:03:15.3]}
12... fxg2 {[%clk 0:03:43.2]} 13. Re1 {[%clk 0:03:13]} 13... Qf6 {[%clk
0:03:28.7]} 14. Be3 {[%clk 0:03:09.9]} 14... Qh4 {[%clk 0:03:10.7]} 15. Kxg2
{[%clk 0:02:01.4]} 15... Qxh3+ {[%clk 0:02:54.1]} 16. Kg1 {[%clk 0:02:00.2]}
16... Bg4 {[%clk 0:02:43.4]} 17. Qd4 {[%clk 0:01:41.3]} 17... Bf3 {[%clk
0:02:20.6]} 18. Qc4+ {[%clk 0:01:17.1]} 18... Kh8 {[%clk 0:02:15.6]} 19. Qf1
{[%clk 0:01:15.7]} 19... Qh1# {[%clk 0:02:11]} 0-1

[Event "Live Chess"]
[Site "Chess.com"]
[Date "2024.06.01"]
[Round "-"]
[White "akp42"]
[Black "PatientChessPapa"]
[Result "1-0"]
[WhiteElo "1988"]
[BlackElo "909"]
[TimeControl "300"]
[EndTime "9:20:23 PDT"]
[Termination "akp42 won on time"]

1. e4 {[%clk 0:04:57.6]} 1... e5 {[%clk 0:04:58.3]} 2. Nf3 {[%clk 0:04:56.4]}
2... Nc6 {[%clk 0:04:56.8]} 3. d4 {[%clk 0:04:54.7]} 3... exd4 {[%clk
0:04:55.3]} 4. Nxd4 {[%clk 0:04:54.2]} 4... Bc5 {[%clk 0:04:45.5]} 5. Nxc6
{[%clk 0:04:49.6]} 5... bxc6 {[%clk 0:04:42]} 6. Bd3 {[%clk 0:04:47.1]} 6... d5
{[%clk 0:04:17.3]} 7. O-O {[%clk 0:04:44.3]} 7... Nf6 {[%clk 0:04:10.3]} 8. exd5
{[%clk 0:04:38.6]} 8... cxd5 {[%clk 0:04:06.7]} 9. Re1+ {[%clk 0:04:37]} 9...
Be6 {[%clk 0:04:03.7]} 10. Bf5 {[%clk 0:04:35.3]} 10... Qd6 {[%clk 0:03:41.8]}
11. Qe2 {[%clk 0:04:14.9]} 11... Ne4 {[%clk 0:03:24.8]} 12. Bxe6 {[%clk
0:04:01]} 12... Qxe6 {[%clk 0:02:55.8]} 13. Be3 {[%clk 0:03:56]} 13... Bd6
{[%clk 0:02:46.9]} 14. f3 {[%clk 0:03:47.7]} 14... Nf6 {[%clk 0:02:18.5]} 15.
Qb5+ {[%clk 0:03:45.3]} 15... Qd7 {[%clk 0:02:05.8]} 16. Bxa7+ {[%clk 0:03:25]}
16... Kd8 {[%clk 0:01:44.9]} 17. Qxd7+ {[%clk 0:03:05.1]} 17... Kxd7 {[%clk
0:01:40.9]} 18. Bd4 {[%clk 0:02:56.4]} 18... Rhe8 {[%clk 0:01:06.1]} 19. Nc3
{[%clk 0:02:47.8]} 19... Rab8 {[%clk 0:00:48.9]} 20. b3 {[%clk 0:02:32.3]} 20...
Rxe1+ {[%clk 0:00:20.3]} 21. Rxe1 {[%clk 0:02:30.1]} 21... Rb4 {[%clk
0:00:18.3]} 22. Bxf6 {[%clk 0:02:25.8]} 22... gxf6 {[%clk 0:00:17.1]} 23. Nxd5
{[%clk 0:02:24.6]} 23... Rd4 {[%clk 0:00:11.6]} 24. Nxf6+ {[%clk 0:02:21.1]}
24... Kc6 {[%clk 0:00:07.4]} 25. Ne4 {[%clk 0:02:18.2]} 25... f5 {[%clk
0:00:05]} 26. Nxd6 {[%clk 0:02:16.4]} 26... cxd6 {[%clk 0:00:03.7]} 27. Re2
{[%clk 0:02:15.6]} 27... f4 {[%clk 0:00:00.6]} 28. Kf2 {[%clk 0:02:13.3]} 1-0

[Event "Live Chess"]
[Site "Chess.com"]
[Date "2024.06.01"]
[Round "-"]
[White "14141409"]
[Black "wadsy27"]
[Result "1-0"]
[WhiteElo "2560"]
[BlackElo "2590"]
[TimeControl "300"]
[EndTime "9:20:30 PDT"]
[Termination "14141409 won by resignation"]

1. e4 {[%clk 0:04:57.1]} 1... e6 {[%clk 0:04:56.6]} 2. d4 {[%clk 0:04:54.9]}
2... d5 {[%clk 0:04:51.8]} 3. e5 {[%clk 0:04:54.4]} 3... c5 {[%clk 0:04:50.9]}
4. c3 {[%clk 0:04:54.1]} 4... Qb6 {[%clk 0:04:50.4]} 5. Nf3 {[%clk 0:04:53.2]}
5... Bd7 {[%clk 0:04:50.1]} 6. Be2 {[%clk 0:04:51]} 6... Bb5 {[%clk 0:04:49.1]}
7. dxc5 {[%clk 0:04:50.3]} 7... Bxc5 {[%clk 0:04:47.5]} 8. b4 {[%clk 0:04:49.9]}
8... Be7 {[%clk 0:04:46.7]} 9. O-O {[%clk 0:04:43.4]} 9... Bxe2 {[%clk
0:04:45.8]} 10. Qxe2 {[%clk 0:04:42]} 10... Nc6 {[%clk 0:04:45.4]} 11. a4 {[%clk
0:04:40.4]} 11... a6 {[%clk 0:04:40.6]} 12. Na3 {[%clk 0:04:37.3]} 12... Qc7
{[%clk 0:04:32.5]} 13. Nc2 {[%clk 0:04:35.7]} 13... f6 {[%clk 0:04:28.5]} 14.
Bf4 {[%clk 0:04:32.4]} 14... f5 {[%clk 0:04:19.4]} 15. Ncd4 {[%clk 0:04:26.7]}
15... Nxd4 {[%clk 0:04:18.7]} 16. Nxd4 {[%clk 0:04:26.1]} 16... Qd7 {[%clk
0:04:18.3]} 17. Rfd1 {[%clk 0:04:19.4]} 17... h5 {[%clk 0:04:14.3]} 18. c4
{[%clk 0:04:15]} 18... g5 {[%clk 0:04:10.5]} 19. cxd5 {[%clk 0:03:47]} 19...
gxf4 {[%clk 0:04:03.6]} 20. dxe6 {[%clk 0:03:46.6]} 20... Qc8 {[%clk 0:03:55.4]}
21. Nxf5 {[%clk 0:03:45.3]} 21... Kf8 {[%clk 0:03:51.1]} 22. Rd7 {[%clk
0:03:37.8]} 22... Qc6 {[%clk 0:03:47.9]} 23. Nd4 {[%clk 0:03:20.8]} 23... Qc3
{[%clk 0:03:45.4]} 24. Rd1 {[%clk 0:03:15.7]} 24... Rc8 {[%clk 0:03:21.5]} 25.
Qe4 {[%clk 0:03:11.6]} 25... Nh6 {[%clk 0:03:21.1]} 26. Qg6 {[%clk 0:03:02.9]}
26... Qc1 {[%clk 0:03:09.2]} 27. Nf5 {[%clk 0:03:01.7]} 1-0

[Event "Live Chess"]
[Site "Chess.com"]
[Date "2024.06.01"]
[Round "-"]
[White "DavrosLight"]
[Black "KeithArkell"]
[Result "0-1"]
[WhiteElo "778"]
[BlackElo "2514"]
[TimeControl "300"]
[EndTime "9:20:50 PDT"]
[Termination "KeithArkell won by checkmate"]

1. e4 {[%clk 0:04:54.8]} 1... c6 {[%clk 0:04:59]} 2. d4 {[%clk 0:04:50.4]} 2...
d5 {[%clk 0:04:57.8]} 3. exd5 {[%clk 0:04:48.9]} 3... cxd5 {[%clk 0:04:56.9]} 4.
Bd3 {[%clk 0:04:48]} 4... Nf6 {[%clk 0:04:56.4]} 5. c3 {[%clk 0:04:47.2]} 5...
Nc6 {[%clk 0:04:55.7]} 6. Bf4 {[%clk 0:04:43.6]} 6... Bg4 {[%clk 0:04:55]} 7.
Qb3 {[%clk 0:04:41.8]} 7... Qd7 {[%clk 0:04:54.2]} 8. Nd2 {[%clk 0:04:33.1]}
8... e6 {[%clk 0:04:53.3]} 9. Ngf3 {[%clk 0:04:31.4]} 9... Bxf3 {[%clk
0:04:51.4]} 10. Nxf3 {[%clk 0:04:29.6]} 10... Bd6 {[%clk 0:04:51]} 11. Bg3
{[%clk 0:04:03.5]} 11... O-O {[%clk 0:04:47.5]} 12. Ne5 {[%clk 0:03:57]} 12...
Qc7 {[%clk 0:04:46]} 13. O-O {[%clk 0:03:41.8]} 13... Nxe5 {[%clk 0:04:42.4]}
14. dxe5 {[%clk 0:03:39.2]} 14... Bxe5 {[%clk 0:04:41.8]} 15. Bxe5 {[%clk
0:03:23.8]} 15... Qxe5 {[%clk 0:04:41.7]} 16. Rae1 {[%clk 0:03:17.1]} 16... Qc7
{[%clk 0:04:39.4]} 17. Qc2 {[%clk 0:03:13.8]} 17... g6 {[%clk 0:04:37.6]} 18. f4
{[%clk 0:03:03.4]} 18... Rab8 {[%clk 0:04:36.3]} 19. a3 {[%clk 0:02:55.5]} 19...
b5 {[%clk 0:04:34.1]} 20. b4 {[%clk 0:02:53.1]} 20... Rfc8 {[%clk 0:04:32.4]}
21. Rc1 {[%clk 0:02:26.5]} 21... Rb6 {[%clk 0:04:31.2]} 22. h3 {[%clk
0:02:18.3]} 22... a6 {[%clk 0:04:30]} 23. g4 {[%clk 0:02:09.1]} 23... Rc6 {[%clk
0:04:28.9]} 24. c4 {[%clk 0:01:52.1]} 24... bxc4 {[%clk 0:04:25.6]} 25. Be2
{[%clk 0:01:38.6]} 25... d4 {[%clk 0:04:24.8]} 26. g5 {[%clk 0:01:30.2]} 26...
Nd5 {[%clk 0:04:21.5]} 27. h4 {[%clk 0:01:19.6]} 27... Ne3 {[%clk 0:04:15.5]}
28. Qd2 {[%clk 0:00:48.1]} 28... Nxf1 {[%clk 0:04:13.8]} 29. Rxf1 {[%clk
0:00:43.6]} 29... d3 {[%clk 0:04:13.2]} 30. Bf3 {[%clk 0:00:39.7]} 30... Rd6
{[%clk 0:04:10.6]} 31. h5 {[%clk 0:00:36.6]} 31... c3 {[%clk 0:04:09.4]} 32. Qh2
{[%clk 0:00:30.5]} 32... c2 {[%clk 0:04:02.8]} 33. hxg6 {[%clk 0:00:25.8]} 33...
fxg6 {[%clk 0:03:57.7]} 34. Rc1 {[%clk 0:00:15.6]} 34... Qb6+ {[%clk 0:03:54.5]}
35. Kg2 {[%clk 0:00:13.8]} 35... Qe3 {[%clk 0:03:52.2]} 36. Bh5 {[%clk
0:00:04.4]} 36... Qxc1 {[%clk 0:03:47.8]} 37. Bxg6 {[%clk 0:00:02.6]} 37... Qd2+
{[%clk 0:03:47]} 38. Kg1 {[%clk 0:00:00.4]} 38... c1=Q# {[%clk 0:03:43.2]} 0-1

[Event "Live Chess"]
[Site "Chess.com"]
[Date "2024.06.01"]
[Round "-"]
[White "Trecregin"]
[Black "A3ndrey9"]
[Result "1-0"]
[WhiteElo "1800"]
[BlackElo "1253"]
[TimeControl "300"]
[EndTime "9:20:59 PDT"]
[Termination "Trecregin won by resignation"]

1. e4 {[%clk 0:04:58.8]} 1... c6 {[%clk 0:04:58.7]} 2. d3 {[%clk 0:04:57.5]}
2... d5 {[%clk 0:04:58.6]} 3. Nf3 {[%clk 0:04:55.8]} 3... dxe4 {[%clk
0:04:57.6]} 4. Ng5 {[%clk 0:04:54.8]} 4... Bf5 {[%clk 0:04:46.5]} 5. Nc3 {[%clk
0:04:52.5]} 5... exd3 {[%clk 0:04:39.7]} 6. cxd3 {[%clk 0:04:45.5]} 6... Nf6
{[%clk 0:04:31.4]} 7. Qf3 {[%clk 0:04:42.6]} 7... e6 {[%clk 0:04:24.6]} 8. h3
{[%clk 0:04:37.7]} 8... Bg6 {[%clk 0:04:15.3]} 9. g4 {[%clk 0:04:33.6]} 9... h6
{[%clk 0:04:13.2]} 10. Nge4 {[%clk 0:04:31.7]} 10... Nxe4 {[%clk 0:04:10.9]} 11.
Nxe4 {[%clk 0:04:30.4]} 11... Bb4+ {[%clk 0:04:09.3]} 12. Bd2 {[%clk 0:04:27.8]}
12... Qb6 {[%clk 0:04:01]} 13. Nc3 {[%clk 0:04:18.3]} 13... O-O {[%clk
0:03:41.5]} 14. Be2 {[%clk 0:04:11.9]} 14... Nd7 {[%clk 0:03:37.5]} 15. a3
{[%clk 0:04:10.8]} 15... Bxc3 {[%clk 0:03:36]} 16. Bxc3 {[%clk 0:04:09.7]} 16...
Nf6 {[%clk 0:03:27.5]} 17. Bxf6 {[%clk 0:03:57.8]} 17... gxf6 {[%clk 0:03:24.1]}
18. Qxf6 {[%clk 0:03:57.1]} 18... Qxb2 {[%clk 0:03:20.7]} 19. Qxb2 {[%clk
0:03:54.8]} 1-0

[Event "Live Chess"]
[Site "Chess.com"]
[Date "2024.06.01"]
[Round "-"]
[White "Purple1szed"]
[Black "peteopeteo"]
[Result "0-1"]
[WhiteElo "2079"]
[BlackElo "1624"]
[TimeControl "300"]
[EndTime "9:21:01 PDT"]
[Termination "peteopeteo won - game abandoned"]

1. e4 {[%clk 0:04:59.1]} 1... c6 {[%clk 0:04:57.3]} 2. d4 {[%clk 0:04:58.3]}
2... d5 {[%clk 0:04:56.6]} 3. e5 {[%clk 0:04:58]} 3... Bf5 {[%clk 0:04:55.3]} 4.
h4 {[%clk 0:04:57]} 4... h5 {[%clk 0:04:53.8]} 5. Bd3 {[%clk 0:04:55.9]} 5...
Bxd3 {[%clk 0:04:52.5]} 6. Qxd3 {[%clk 0:04:55.8]} 6... c5 {[%clk 0:04:51.6]} 7.
e6 {[%clk 0:04:45.9]} 7... fxe6 {[%clk 0:04:26.2]} 8. Qg6+ {[%clk 0:04:44.2]}
8... Kd7 {[%clk 0:04:24.9]} 9. Nf3 {[%clk 0:04:43.9]} 9... Nc6 {[%clk
0:04:22.2]} 10. dxc5 {[%clk 0:04:34.5]} 10... Qa5+ {[%clk 0:04:17]} 11. Bd2
{[%clk 0:04:30.2]} 11... Qxc5 {[%clk 0:04:16.1]} 12. O-O {[%clk 0:04:20.6]}
12... Rh6 {[%clk 0:04:12.2]} 13. Bxh6 {[%clk 0:04:19.1]} 13... Nxh6 {[%clk
0:04:11.2]} 14. Re1 {[%clk 0:04:15.5]} 14... Qd6 {[%clk 0:03:54.9]} 15. Nc3
{[%clk 0:04:00.2]} 15... a6 {[%clk 0:03:50.3]} 16. Rad1 {[%clk 0:03:53.9]} 16...
Rc8 {[%clk 0:03:42.8]} 17. Ng5 {[%clk 0:03:52.3]} 17... Nd8 {[%clk 0:03:39.5]}
18. Rd2 {[%clk 0:03:38.9]} 18... Nf5 {[%clk 0:03:38.5]} 19. Nxe6 {[%clk
0:03:24]} 19... Nxe6 {[%clk 0:03:36.1]} 20. Qxf5 {[%clk 0:03:22.9]} 20... Rc5
{[%clk 0:03:27.1]} 21. Rde2 {[%clk 0:03:04.3]} 21... d4 {[%clk 0:03:09.9]} 22.
Qxe6+ {[%clk 0:02:46.5]} 22... Qxe6 {[%clk 0:03:07.3]} 23. Rxe6 {[%clk
0:02:46.4]} 23... dxc3 {[%clk 0:03:07.2]} 24. bxc3 {[%clk 0:02:46]} 24... Rxc3
{[%clk 0:03:00.3]} 25. R1e2 {[%clk 0:02:27.1]} 25... a5 {[%clk 0:02:22.7]} 26.
R6e3 {[%clk 0:02:20.8]} 26... Rc6 {[%clk 0:02:10.7]} 27. Rd2+ {[%clk 0:02:19.3]}
27... Kc7 {[%clk 0:02:07]} 28. Rf3 {[%clk 0:02:06.7]} 28... Rf6 {[%clk
0:02:03.5]} 29. Rxf6 {[%clk 0:02:05.4]} 29... exf6 {[%clk 0:02:01.1]} 30. Rd5
{[%clk 0:02:04.6]} 30... g6 {[%clk 0:01:49.7]} 31. Rxa5 {[%clk 0:02:03.1]} 31...
Bd6 {[%clk 0:01:36.3]} 32. g3 {[%clk 0:01:51]} 32... b6 {[%clk 0:01:33]} 33.
Ra7+ {[%clk 0:01:46.2]} 33... Kc6 {[%clk 0:01:32.2]} 34. Rg7 {[%clk 0:01:44.9]}
34... Be5 {[%clk 0:01:23.2]} 35. Rxg6 {[%clk 0:01:42.1]} 35... b5 {[%clk
0:01:22.4]} 36. Rh6 {[%clk 0:01:40.4]} 36... Kc5 {[%clk 0:01:21.4]} 37. Rxh5
{[%clk 0:01:39.5]} 37... Kc4 {[%clk 0:01:21.3]} 38. Rxe5 {[%clk 0:01:30]} 38...
fxe5 {[%clk 0:01:20.5]} 39. h5 {[%clk 0:01:29.9]} 39... Kd5 {[%clk 0:01:19.7]}
40. g4 {[%clk 0:01:28.9]} 40... Ke6 {[%clk 0:01:19.1]} 41. g5 {[%clk 0:01:28.5]}
41... Kf5 {[%clk 0:01:18.4]} 42. h6 {[%clk 0:01:28.1]} 42... Kg6 {[%clk
0:01:17.9]} 43. Kg2 {[%clk 0:01:27.6]} 43... b4 {[%clk 0:01:13.8]} 0-1